[Event "SELL Games"]
[Site "Tartu, Estonia"]
[Date "2023.05.20"]
[Round "7.3"]
[White "Laurusas, Tomas"]
[Black "Sirp, Karl Aleksander"]
[Result "0-1"]
[TimeControl "15min + 10sec per move each"]
[WhiteTitle "GM"]
[WhiteFideId "12803731"]
[BlackFideId "4504712"]
[WhiteElo "2504"]
[BlackElo "2033"]

1. c4 {[%clk 00:15:18]} {[%emt 00:00:01]} e5 {[%clk 00:15:18]} {[%emt
00:00:03]} 2. Nc3 {[%clk 00:15:26]} {[%emt 00:00:01]} Nf6 {[%clk 00:15:24]}
{[%emt 00:00:04]} 3. Nf3 {[%clk 00:15:35]} {[%emt 00:00:01]} Nc6 {[%clk
00:15:29]} {[%emt 00:00:05]} 4. d4 {[%clk 00:15:36]} {[%emt 00:00:09]} exd4
{[%clk 00:15:37]} {[%emt 00:00:02]} 5. Nxd4 {[%clk 00:15:44]} {[%emt 00:00:01]}
Bc5 {[%clk 00:15:26]} {[%emt 00:00:21]} 6. Nb3 {[%clk 00:15:46]} {[%emt
00:00:08]} Bb4 {[%clk 00:15:32]} {[%emt 00:00:04]} 7. Bd2 {[%clk 00:15:55]}
{[%emt 00:00:01]} d5 {[%clk 00:14:57]} {[%emt 00:00:45]} 8. Nxd5 {[%clk
00:14:59]} {[%emt 00:01:06]} Nxd5 {[%clk 00:14:56]} {[%emt 00:00:11]} 9. cxd5
{[%clk 00:15:07]} {[%emt 00:00:02]} Qxd5 {[%clk 00:14:55]} {[%emt 00:00:11]} 10.
Bxb4 {[%clk 00:15:15]} {[%emt 00:00:02]} Nxb4 {[%clk 00:14:44]} {[%emt
00:00:21]} 11. Qxd5 {[%clk 00:15:18]} {[%emt 00:00:07]} Nxd5 {[%clk 00:14:53]}
{[%emt 00:00:01]} 12. e4 {[%clk 00:15:26]} {[%emt 00:00:02]} Nb6 {[%clk
00:14:59]} {[%emt 00:00:05]} 13. Na5 {[%clk 00:14:25]} {[%emt 00:01:12]} O-O
{[%clk 00:14:32]} {[%emt 00:00:37]} 14. Bd3 {[%clk 00:14:30]} {[%emt 00:00:04]}
Nd7 {[%clk 00:14:04]} {[%emt 00:00:38]} 15. Rc1 {[%clk 00:14:27]} {[%emt
00:00:14]} c5 {[%clk 00:13:06]} {[%emt 00:01:08]} 16. Bb5 {[%clk 00:14:01]}
{[%emt 00:00:36]} b6 {[%clk 00:12:30]} {[%emt 00:00:46]} 17. Nc4 {[%clk
00:14:01]} {[%emt 00:00:10]} Nf6 {[%clk 00:12:16]} {[%emt 00:00:24]} 18. Bc6
{[%clk 00:14:08]} {[%emt 00:00:02]} Rb8 {[%clk 00:12:22]} {[%emt 00:00:05]} 19.
e5 {[%clk 00:14:16]} {[%emt 00:00:02]} Ne8 {[%clk 00:11:56]} {[%emt 00:00:36]}
20. f4 {[%clk 00:12:13]} {[%emt 00:02:13]} Be6 {[%clk 00:11:30]} {[%emt
00:00:37]} 21. b3 {[%clk 00:11:24]} {[%emt 00:01:00]} Nc7 {[%clk 00:11:19]}
{[%emt 00:00:20]} 22. Ne3 {[%clk 00:11:18]} {[%emt 00:00:15]} Rfd8 {[%clk
00:10:32]} {[%emt 00:00:58]} 23. Rd1 {[%clk 00:11:07]} {[%emt 00:00:21]} Kf8
{[%clk 00:08:26]} {[%emt 00:02:16]} 24. Ke2 {[%clk 00:11:16]} {[%emt 00:00:01]}
Rd4 {[%clk 00:07:07]} {[%emt 00:01:29]} 25. f5 {[%clk 00:10:59]} {[%emt
00:00:27]} Bc8 {[%clk 00:07:01]} {[%emt 00:00:16]} 26. g4 {[%clk 00:11:06]}
{[%emt 00:00:03]} Ba6+ {[%clk 00:07:02]} {[%emt 00:00:09]} 27. Kf3 {[%clk
00:11:02]} {[%emt 00:00:08]} Rbd8 {[%clk 00:07:04]} {[%emt 00:00:14]} 28. Rxd4
{[%clk 00:11:04]} {[%emt 00:00:07]} Rxd4 {[%clk 00:06:56]} {[%emt 00:00:18]} 29.
Rd1 {[%clk 00:11:09]} {[%emt 00:00:05]} Rxd1 {[%clk 00:06:51]} {[%emt
00:00:15]} 30. Nxd1 {[%clk 00:11:18]} Ke7 {[%clk 00:06:47]} {[%emt 00:00:15]}
31. Nc3 {[%clk 00:11:10]} {[%emt 00:00:18]} f6 {[%clk 00:05:17]} {[%emt
00:01:40]} 32. Ke4 {[%clk 00:10:57]} {[%emt 00:00:23]} Bf1 {[%clk 00:05:06]}
{[%emt 00:00:20]} 33. h4 {[%clk 00:10:57]} {[%emt 00:00:10]} Bg2+ {[%clk
00:05:13]} {[%emt 00:00:03]} 34. Kf4 {[%clk 00:10:43]} {[%emt 00:00:23]} Bxc6
{[%clk 00:05:02]} {[%emt 00:00:22]} 35. exf6+ {[%clk 00:09:58]} {[%emt
00:00:56]} gxf6 {[%clk 00:05:02]} {[%emt 00:00:09]} 36. Ne2 {[%clk 00:09:54]}
{[%emt 00:00:15]} h6 {[%clk 00:04:34]} {[%emt 00:00:38]} 37. g5 {[%clk
00:09:58]} {[%emt 00:00:07]} fxg5+ {[%clk 00:04:40]} {[%emt 00:00:03]} 38. hxg5
{[%clk 00:10:07]} {[%emt 00:00:01]} hxg5+ {[%clk 00:04:49]} {[%emt 00:00:02]}
39. Kxg5 {[%clk 00:10:16]} Nd5 {[%clk 00:03:59]} {[%emt 00:01:01]} 40. Kg6
{[%clk 00:10:13]} {[%emt 00:00:13]} Nf6 {[%clk 00:03:47]} {[%emt 00:00:21]} 41.
Nf4 {[%clk 00:09:43]} {[%emt 00:00:40]} Be8+ {[%clk 00:03:44]} {[%emt
00:00:13]} 42. Kg5 {[%clk 00:09:52]} Bf7 {[%clk 00:03:21]} {[%emt 00:00:35]} 43.
Nd3 {[%clk 00:09:59]} {[%emt 00:00:03]} Ne4+ {[%clk 00:03:19]} {[%emt
00:00:11]} 44. Kf4 {[%clk 00:10:01]} {[%emt 00:00:08]} Nc3 {[%clk 00:03:11]}
{[%emt 00:00:18]} 45. Nc1 {[%clk 00:09:39]} {[%emt 00:00:32]} Kf6 {[%clk
00:03:07]} {[%emt 00:00:14]} 46. a3 {[%clk 00:09:48]} {[%emt 00:00:02]} Nb5
{[%clk 00:03:01]} {[%emt 00:00:15]} 47. b4 {[%clk 00:09:42]} {[%emt 00:00:16]}
c4 {[%clk 00:03:05]} {[%emt 00:00:06]} 48. a4 {[%clk 00:09:47]} {[%emt
00:00:05]} Nd4 {[%clk 00:03:08]} {[%emt 00:00:07]} 49. Ke4 {[%clk 00:09:51]}
{[%emt 00:00:06]} Nxf5 {[%clk 00:03:00]} {[%emt 00:00:17]} 50. Ne2 {[%clk
00:10:00]} {[%emt 00:00:01]} Nd6+ {[%clk 00:03:04]} {[%emt 00:00:06]} 51. Kd4
{[%clk 00:10:09]} {[%emt 00:00:01]} Nf5+ {[%clk 00:02:37]} {[%emt 00:00:37]} 52.
Ke4 {[%clk 00:10:17]} {[%emt 00:00:02]} Ne7 {[%clk 00:02:05]} {[%emt 00:00:42]}
53. a5 {[%clk 00:10:08]} {[%emt 00:00:19]} Nc6 {[%clk 00:01:53]} {[%emt
00:00:22]} 54. axb6 {[%clk 00:10:15]} {[%emt 00:00:03]} axb6 {[%clk 00:02:02]}
55. b5 {[%clk 00:10:22]} {[%emt 00:00:03]} Na7 {[%clk 00:01:30]} {[%emt
00:00:42]} 56. Nc3 {[%clk 00:10:31]} {[%emt 00:00:01]} Nc8 {[%clk 00:01:13]}
{[%emt 00:00:27]} 57. Kd4 {[%clk 00:10:31]} {[%emt 00:00:10]} Ke7 {[%clk
00:01:20]} {[%emt 00:00:03]} 58. Ke5 {[%clk 00:10:33]} {[%emt 00:00:08]} Nd6
{[%clk 00:01:12]} {[%emt 00:00:18]} 59. Kd4 {[%clk 00:10:31]} {[%emt 00:00:12]}
Kd7 {[%clk 00:01:11]} {[%emt 00:00:11]} 60. Ke5 {[%clk 00:10:33]} {[%emt
00:00:08]} Kc7 {[%clk 00:01:06]} {[%emt 00:00:15]} 61. Kd4 {[%clk 00:10:42]}
Nb7 {[%clk 00:00:47]} {[%emt 00:00:29]} 62. Ne4 {[%clk 00:10:43]} {[%emt
00:00:09]} Na5 {[%clk 00:00:49]} {[%emt 00:00:08]} 63. Ke5 {[%clk 00:10:26]}
{[%emt 00:00:27]} Nb3 {[%clk 00:00:45]} {[%emt 00:00:14]} 64. Nc3 {[%clk
00:10:27]} {[%emt 00:00:10]} Nc5 {[%clk 00:00:45]} {[%emt 00:00:10]} 65. Kf6
{[%clk 00:10:36]} {[%emt 00:00:01]} Be6 {[%clk 00:00:43]} {[%emt 00:00:12]} 66.
Ke5 {[%clk 00:10:45]} {[%emt 00:00:01]} Bg8 {[%clk 00:00:50]} {[%emt 00:00:03]}
67. Kd4 {[%clk 00:10:30]} {[%emt 00:00:25]} Kd6 {[%clk 00:00:56]} {[%emt
00:00:03]} 68. Nd1 {[%clk 00:10:25]} {[%emt 00:00:14]} Nb3+ {[%clk 00:00:58]}
{[%emt 00:00:09]} 69. Kc3 {[%clk 00:10:32]} {[%emt 00:00:03]} Kc5 {[%clk
00:01:05]} {[%emt 00:00:03]} 70. Ne3 {[%clk 00:10:41]} Kxb5 {[%clk 00:01:06]}
{[%emt 00:00:08]} 71. Nc2 {[%clk 00:10:46]} {[%emt 00:00:05]} Kc5 {[%clk
00:01:07]} {[%emt 00:00:10]} 72. Nb4 {[%clk 00:10:49]} {[%emt 00:00:07]} b5
{[%clk 00:01:03]} {[%emt 00:00:14]} 73. Na6+ {[%clk 00:10:57]} {[%emt
00:00:02]} Kb6 {[%clk 00:01:08]} {[%emt 00:00:05]} 74. Nb4 {[%clk 00:11:05]}
{[%emt 00:00:02]} Nc5 {[%clk 00:01:14]} {[%emt 00:00:04]} 75. Nc2 {[%clk
00:11:11]} {[%emt 00:00:02]} Ka5 {[%clk 00:01:20]} {[%emt 00:00:06]} 76. Nd4
{[%clk 00:11:16]} {[%emt 00:00:05]} b4+ {[%clk 00:01:24]} {[%emt 00:00:06]} 77.
Kb2 {[%clk 00:11:22]} Na4+ {[%clk 00:01:31]} {[%emt 00:00:06]} 78. Ka1 {[%clk
00:11:28]} {[%emt 00:00:04]} b3 {[%clk 00:01:27]} {[%emt 00:00:13]} 79. Nc6+
{[%clk 00:11:04]} {[%emt 00:00:34]} Kb6 {[%clk 00:01:25]} {[%emt 00:00:12]} 80.
Nd4 {[%clk 00:11:12]} {[%emt 00:00:02]} b2+ {[%clk 00:01:27]} {[%emt 00:00:08]}
81. Kb1 {[%clk 00:11:06]} {[%emt 00:00:16]} Bh7+ {[%clk 00:01:36]} {[%emt
00:00:01]} 82. Nc2 {[%clk 00:11:16]} Bxc2+ {[%clk 00:01:40]} {[%emt 00:00:06]}
83. Kxc2 {[%clk 00:11:24]} {[%emt 00:00:01]} Kb5 {[%clk 00:01:46]} {[%emt
00:00:04]} 0-1

[Event "SELL Games"]
[Site "Tartu, Estonia"]
[Date "2023.05.20"]
[Round "7.4"]
[White "Tvarijonas, Tomas"]
[Black "Obolonin, Filipp"]
[Result "0-1"]
[TimeControl "15min + 10sec per move each"]
[WhiteTitle "FM"]
[WhiteFideId "12805432"]
[BlackFideId "4505549"]
[WhiteElo "2181"]
[BlackElo "2017"]

1. e4 {[%clk 00:15:19]} {[%emt 00:00:17]} c6 {[%clk 00:15:19]} {[%emt
00:00:02]} 2. c4 {[%clk 00:15:24]} {[%emt 00:00:05]} d5 {[%clk 00:15:28]}
{[%emt 00:00:01]} 3. exd5 {[%clk 00:15:32]} {[%emt 00:00:02]} cxd5 {[%clk
00:15:37]} 4. d4 {[%clk 00:15:40]} {[%emt 00:00:02]} e6 {[%clk 00:15:46]} 5.
Nc3 {[%clk 00:15:47]} {[%emt 00:00:03]} Nf6 {[%clk 00:15:54]} {[%emt 00:00:01]}
6. Nf3 {[%clk 00:15:43]} {[%emt 00:00:13]} Be7 {[%clk 00:16:03]} {[%emt
00:00:01]} 7. Be2 {[%clk 00:15:38]} {[%emt 00:00:16]} O-O {[%clk 00:16:11]}
{[%emt 00:00:02]} 8. O-O {[%clk 00:15:43]} {[%emt 00:00:05]} Nc6 {[%clk
00:16:20]} {[%emt 00:00:01]} 9. b3 {[%clk 00:14:49]} {[%emt 00:01:04]} b6
{[%clk 00:16:19]} {[%emt 00:00:11]} 10. Ne5 {[%clk 00:13:46]} {[%emt 00:01:12]}
Bb7 {[%clk 00:16:21]} {[%emt 00:00:08]} 11. Bf3 {[%clk 00:12:31]} {[%emt
00:01:26]} Na5 {[%clk 00:16:14]} {[%emt 00:00:17]} 12. Be3 {[%clk 00:11:30]}
{[%emt 00:01:11]} Rc8 {[%clk 00:14:44]} {[%emt 00:01:40]} 13. Rc1 {[%clk
00:11:39]} dxc4 {[%clk 00:13:34]} {[%emt 00:01:20]} 14. Bxb7 {[%clk 00:11:41]}
{[%emt 00:00:08]} Nxb7 {[%clk 00:13:42]} {[%emt 00:00:01]} 15. bxc4 {[%clk
00:11:25]} {[%emt 00:00:26]} Nd6 {[%clk 00:13:51]} 16. Qd3 {[%clk 00:10:52]}
{[%emt 00:00:43]} Nd7 {[%clk 00:13:38]} {[%emt 00:00:24]} 17. Nxd7 {[%clk
00:08:36]} {[%emt 00:02:26]} Qxd7 {[%clk 00:13:47]} {[%emt 00:00:01]} 18. c5
{[%clk 00:08:14]} {[%emt 00:00:32]} Nf5 {[%clk 00:13:31]} {[%emt 00:00:26]} 19.
cxb6 {[%clk 00:07:53]} {[%emt 00:00:31]} axb6 {[%clk 00:13:39]} {[%emt
00:00:02]} 20. Qe4 {[%clk 00:05:59]} {[%emt 00:02:04]} Ba3 {[%clk 00:13:09]}
{[%emt 00:00:40]} 21. Rc2 {[%clk 00:05:42]} {[%emt 00:00:28]} Rc4 {[%clk
00:11:32]} {[%emt 00:01:47]} 22. Ne2 {[%clk 00:05:23]} {[%emt 00:00:29]} b5
{[%clk 00:10:43]} {[%emt 00:01:00]} 23. Qd3 {[%clk 00:05:09]} {[%emt 00:00:24]}
Rxc2 {[%clk 00:10:49]} {[%emt 00:00:04]} 24. Qxc2 {[%clk 00:05:17]} {[%emt
00:00:02]} Rc8 {[%clk 00:10:34]} {[%emt 00:00:25]} 25. Qd3 {[%clk 00:05:07]}
{[%emt 00:00:20]} Nxe3 {[%clk 00:10:18]} {[%emt 00:00:27]} 26. fxe3 {[%clk
00:05:06]} {[%emt 00:00:11]} Be7 {[%clk 00:10:08]} {[%emt 00:00:19]} 27. h3
{[%clk 00:02:37]} {[%emt 00:02:40]} h6 {[%clk 00:10:16]} {[%emt 00:00:02]} 28.
Qb3 {[%clk 00:02:18]} {[%emt 00:00:29]} b4 {[%clk 00:10:21]} {[%emt 00:00:06]}
29. Rd1 {[%clk 00:02:13]} {[%emt 00:00:15]} Ra8 {[%clk 00:10:20]} {[%emt
00:00:11]} 30. Qc4 {[%clk 00:01:51]} {[%emt 00:00:31]} Ra3 {[%clk 00:10:08]}
{[%emt 00:00:22]} 31. e4 {[%clk 00:01:57]} {[%emt 00:00:04]} Qa7 {[%clk
00:09:41]} {[%emt 00:00:37]} 32. Nc1 {[%clk 00:01:36]} {[%emt 00:00:32]} e5
{[%clk 00:09:44]} {[%emt 00:00:07]} 33. Qc8+ {[%clk 00:01:33]} {[%emt
00:00:12]} Bf8 {[%clk 00:09:50]} {[%emt 00:00:04]} 34. Nb3 {[%clk 00:00:43]}
{[%emt 00:01:00]} exd4 {[%clk 00:09:39]} {[%emt 00:00:21]} 35. Kh1 {[%clk
00:00:38]} {[%emt 00:00:15]} Rxa2 {[%clk 00:09:40]} {[%emt 00:00:09]} 36. Nxd4
{[%clk 00:00:28]} {[%emt 00:00:21]} Ra1 {[%clk 00:09:44]} {[%emt 00:00:05]} 37.
Qc2 {[%clk 00:00:24]} {[%emt 00:00:14]} Qxd4 {[%clk 00:09:50]} {[%emt
00:00:04]} 0-1

[Event "SELL Games"]
[Site "Tartu, Estonia"]
[Date "2023.05.20"]
[Round "7.5"]
[White "Vaskevicius, Augustas"]
[Black "Bekasovs, Rihards"]
[Result "1-0"]
[TimeControl "15min + 10sec per move each"]
[WhiteFideId "12808008"]
[BlackFideId "11606029"]
[WhiteElo "1904"]
[BlackElo "2107"]

1. Nf3 {[%clk 00:15:17]} {[%emt 00:00:01]} Nf6 {[%clk 00:15:11]} {[%emt
00:00:10]} 2. e3 {[%clk 00:15:25]} {[%emt 00:00:03]} g6 {[%clk 00:15:16]}
{[%emt 00:00:05]} 3. b3 {[%clk 00:15:33]} {[%emt 00:00:02]} Bg7 {[%clk
00:15:21]} {[%emt 00:00:04]} 4. Bb2 {[%clk 00:15:42]} {[%emt 00:00:02]} b6
{[%clk 00:15:22]} {[%emt 00:00:10]} 5. d4 {[%clk 00:15:42]} {[%emt 00:00:09]}
Bb7 {[%clk 00:15:18]} {[%emt 00:00:15]} 6. Bd3 {[%clk 00:15:45]} {[%emt
00:00:06]} O-O {[%clk 00:15:25]} {[%emt 00:00:03]} 7. O-O {[%clk 00:15:46]}
{[%emt 00:00:08]} c5 {[%clk 00:15:34]} {[%emt 00:00:02]} 8. Nbd2 {[%clk
00:15:34]} {[%emt 00:00:22]} Nc6 {[%clk 00:15:08]} {[%emt 00:00:36]} 9. c4
{[%clk 00:14:57]} {[%emt 00:00:47]} cxd4 {[%clk 00:15:14]} {[%emt 00:00:03]} 10.
Nxd4 {[%clk 00:14:58]} {[%emt 00:00:09]} d6 {[%clk 00:13:27]} {[%emt 00:01:58]}
11. Rc1 {[%clk 00:14:04]} {[%emt 00:01:04]} a6 {[%clk 00:13:16]} {[%emt
00:00:21]} 12. Qe2 {[%clk 00:13:04]} {[%emt 00:01:09]} Qd7 {[%clk 00:12:57]}
{[%emt 00:00:29]} 13. Rfd1 {[%clk 00:12:30]} {[%emt 00:00:44]} Rfb8 {[%clk
00:09:07]} {[%emt 00:04:00]} 14. N2f3 {[%clk 00:10:06]} {[%emt 00:02:34]} Nxd4
{[%clk 00:08:29]} {[%emt 00:00:48]} 15. exd4 {[%clk 00:09:36]} {[%emt
00:00:40]} Nh5 {[%clk 00:05:14]} {[%emt 00:03:25]} 16. Qe3 {[%clk 00:06:03]}
{[%emt 00:03:43]} Qg4 {[%clk 00:04:37]} {[%emt 00:00:46]} 17. h3 {[%clk
00:04:57]} {[%emt 00:01:16]} Qf4 {[%clk 00:04:37]} {[%emt 00:00:10]} 18. Re1
{[%clk 00:03:35]} {[%emt 00:01:33]} Bxf3 {[%clk 00:04:04]} {[%emt 00:00:43]} 19.
Qxf3 {[%clk 00:03:15]} {[%emt 00:00:30]} Qxf3 {[%clk 00:03:20]} {[%emt
00:00:54]} 20. gxf3 {[%clk 00:03:23]} {[%emt 00:00:02]} Kf8 {[%clk 00:02:27]}
{[%emt 00:01:03]} 21. Rc2 {[%clk 00:02:58]} {[%emt 00:00:35]} Nf4 {[%clk
00:01:31]} {[%emt 00:01:06]} 22. Bf1 {[%clk 00:03:04]} {[%emt 00:00:03]} a5
{[%clk 00:00:42]} {[%emt 00:00:59]} 23. Re4 {[%clk 00:02:50]} {[%emt 00:00:24]}
g5 {[%clk 00:00:20]} {[%emt 00:00:33]} 24. h4 {[%clk 00:01:56]} {[%emt
00:01:04]} h6 {[%clk 00:00:20]} {[%emt 00:00:11]} 25. hxg5 {[%clk 00:01:54]}
{[%emt 00:00:11]} hxg5 {[%clk 00:00:29]} {[%emt 00:00:01]} 26. Bc1 {[%clk
00:02:01]} {[%emt 00:00:02]} Ne6 {[%clk 00:00:15]} {[%emt 00:00:24]} 27. Be3
{[%clk 00:00:34]} {[%emt 00:01:37]} Ra7 {[%clk 00:00:12]} {[%emt 00:00:13]} 28.
Bh3 {[%clk 00:00:36]} {[%emt 00:00:08]} Nf4 {[%clk 00:00:12]} {[%emt 00:00:10]}
29. Bxf4 {[%clk 00:00:35]} {[%emt 00:00:11]} gxf4 {[%clk 00:00:22]} {[%emt
00:00:01]} 30. Rxf4 {[%clk 00:00:43]} {[%emt 00:00:02]} a4 {[%clk 00:00:13]}
{[%emt 00:00:19]} 31. Kg2 {[%clk 00:00:30]} {[%emt 00:00:22]} axb3 {[%emt
00:00:03]} 32. axb3 {[%clk 00:00:39]} Ra3 {[%clk 00:00:30]} {[%emt 00:00:01]}
33. c5 {[%clk 00:00:33]} {[%emt 00:00:16]} bxc5 {[%clk 00:00:18]} {[%emt
00:00:22]} 34. dxc5 {[%clk 00:00:41]} dxc5 {[%clk 00:00:27]} {[%emt 00:00:02]}
35. Rxc5 {[%clk 00:00:45]} {[%emt 00:00:06]} Raxb3 {[%clk 00:00:33]} {[%emt
00:00:04]} 36. Be6 {[%clk 00:00:46]} {[%emt 00:00:08]} Bf6 {[%clk 00:00:15]}
{[%emt 00:00:28]} 37. Bxb3 {[%clk 00:00:55]} {[%emt 00:00:02]} Rxb3 {[%clk
00:00:24]} {[%emt 00:00:01]} 38. Rc8+ {[%clk 00:00:58]} {[%emt 00:00:06]} Kg7
{[%clk 00:00:33]} 39. Rg4+ {[%clk 00:01:07]} Kh6 {[%clk 00:00:28]} {[%emt
00:00:14]} 40. Rc1 {[%clk 00:01:08]} {[%emt 00:00:10]} Rb5 {[%clk 00:00:22]}
{[%emt 00:00:16]} 41. Rh1+ {[%clk 00:00:56]} {[%emt 00:00:22]} Rh5 {[%clk
00:00:31]} {[%emt 00:00:01]} 42. Rxh5+ {[%clk 00:01:05]} {[%emt 00:00:02]} Kxh5
{[%clk 00:00:40]} 43. Kg3 {[%clk 00:01:02]} {[%emt 00:00:13]} Kh6 {[%clk
00:00:41]} {[%emt 00:00:09]} 44. Kf4 {[%clk 00:01:04]} {[%emt 00:00:08]} Bd4
{[%clk 00:00:49]} {[%emt 00:00:02]} 45. Rg2 {[%clk 00:01:07]} {[%emt 00:00:07]}
Bb6 {[%clk 00:00:21]} {[%emt 00:00:37]} 46. Ke4 {[%clk 00:01:13]} {[%emt
00:00:05]} e6 {[%clk 00:00:12]} {[%emt 00:00:19]} 47. Ke5 {[%clk 00:01:06]}
{[%emt 00:00:17]} Kh5 {[%clk 00:00:12]} {[%emt 00:00:10]} 48. Kf6 {[%clk
00:01:02]} {[%emt 00:00:12]} Bd4+ {[%clk 00:00:13]} {[%emt 00:00:10]} 49. Kxf7
{[%clk 00:01:10]} {[%emt 00:00:02]} e5 {[%clk 00:00:21]} {[%emt 00:00:03]} 50.
Ke6 {[%clk 00:01:14]} {[%emt 00:00:06]} Kh4 {[%clk 00:00:29]} {[%emt 00:00:02]}
51. Kd5 {[%clk 00:01:08]} {[%emt 00:00:15]} Kh3 {[%emt 00:00:03]} 52. Rg4
{[%clk 00:01:15]} 1-0

[Event "SELL Games"]
[Site "Tartu, Estonia"]
[Date "2023.05.20"]
[Round "7.6"]
[White "Vanagas, Tadas"]
[Black "Perminaite, Guoda"]
[Result "1/2-1/2"]
[TimeControl "15min + 10sec per move each"]
[WhiteFideId "12805467"]
[BlackFideId "12808784"]
[WhiteElo "2225"]
[BlackElo "1725"]

1. e4 {[%clk 00:15:18]} {[%emt 00:00:02]} e5 {[%clk 00:15:19]} {[%emt
00:00:01]} 2. Nf3 {[%clk 00:15:26]} Nc6 {[%clk 00:15:28]} {[%emt 00:00:01]} 3.
Bb5 {[%clk 00:15:36]} a6 {[%clk 00:15:37]} {[%emt 00:00:01]} 4. Ba4 {[%clk
00:15:45]} d6 {[%clk 00:15:27]} {[%emt 00:00:20]} 5. c3 {[%clk 00:15:29]}
{[%emt 00:00:24]} Nge7 {[%clk 00:14:10]} {[%emt 00:01:28]} 6. h3 {[%clk
00:15:21]} {[%emt 00:00:18]} Bd7 {[%clk 00:13:22]} {[%emt 00:00:58]} 7. d4
{[%clk 00:15:11]} {[%emt 00:00:20]} Ng6 {[%clk 00:13:28]} {[%emt 00:00:04]} 8.
Be3 {[%clk 00:14:49]} {[%emt 00:00:33]} Be7 {[%clk 00:13:25]} {[%emt 00:00:13]}
9. Nbd2 {[%clk 00:14:19]} {[%emt 00:00:40]} h6 {[%clk 00:12:52]} {[%emt
00:00:44]} 10. Nf1 {[%clk 00:13:35]} {[%emt 00:00:54]} Bg5 {[%clk 00:11:09]}
{[%emt 00:01:52]} 11. Nxg5 {[%clk 00:09:39]} {[%emt 00:04:07]} hxg5 {[%clk
00:11:16]} {[%emt 00:00:03]} 12. d5 {[%clk 00:09:47]} {[%emt 00:00:02]} Nb8
{[%clk 00:11:11]} {[%emt 00:00:15]} 13. Bxd7+ {[%clk 00:09:56]} {[%emt
00:00:01]} Nxd7 {[%clk 00:11:19]} {[%emt 00:00:03]} 14. Qg4 {[%clk 00:10:04]}
{[%emt 00:00:02]} Rh4 {[%clk 00:09:09]} {[%emt 00:02:20]} 15. Qxg5 {[%clk
00:07:04]} {[%emt 00:03:10]} Qxg5 {[%clk 00:07:34]} {[%emt 00:01:44]} 16. Bxg5
{[%clk 00:07:13]} {[%emt 00:00:01]} Rxe4+ {[%clk 00:07:43]} {[%emt 00:00:01]}
17. Kd2 {[%clk 00:05:35]} {[%emt 00:01:48]} Nf4 {[%clk 00:05:07]} {[%emt
00:02:45]} 18. Ne3 {[%clk 00:04:51]} {[%emt 00:00:55]} f6 {[%clk 00:04:39]}
{[%emt 00:00:37]} 19. Bxf4 {[%clk 00:04:20]} {[%emt 00:00:41]} exf4 {[%clk
00:03:56]} {[%emt 00:00:53]} 20. Ng4 {[%clk 00:02:40]} {[%emt 00:01:50]} Kf7
{[%clk 00:02:38]} {[%emt 00:01:28]} 21. b3 {[%clk 00:00:59]} {[%emt 00:01:51]}
Rae8 {[%clk 00:02:36]} {[%emt 00:00:12]} 22. Rhe1 {[%clk 00:01:09]} {[%emt
00:00:01]} Nc5 {[%clk 00:02:16]} {[%emt 00:00:30]} 23. Rxe4 {[%clk 00:00:24]}
{[%emt 00:00:55]} Nxe4+ {[%clk 00:02:24]} {[%emt 00:00:02]} 24. Kc2 {[%clk
00:00:17]} {[%emt 00:00:17]} f5 {[%clk 00:02:26]} {[%emt 00:00:08]} 25. Nh2
{[%clk 00:00:19]} {[%emt 00:00:07]} Nxf2 {[%clk 00:02:30]} {[%emt 00:00:07]} 26.
b4 {[%clk 00:00:19]} {[%emt 00:00:10]} Re2+ {[%clk 00:02:36]} {[%emt 00:00:03]}
27. Kb3 {[%clk 00:00:28]} {[%emt 00:00:02]} b5 {[%clk 00:02:19]} {[%emt
00:00:26]} 28. a4 {[%clk 00:00:25]} {[%emt 00:00:13]} Nd3 {[%clk 00:02:03]}
{[%emt 00:00:26]} 29. axb5 {[%clk 00:00:32]} {[%emt 00:00:04]} axb5 {[%clk
00:02:11]} {[%emt 00:00:02]} 30. c4 {[%clk 00:00:26]} {[%emt 00:00:15]} bxc4+
{[%clk 00:01:52]} {[%emt 00:00:29]} 31. Kxc4 {[%clk 00:00:34]} {[%emt
00:00:02]} Ne5+ {[%clk 00:01:56]} {[%emt 00:00:06]} 32. Kb5 {[%clk 00:00:43]}
Rxg2 {[%clk 00:02:04]} {[%emt 00:00:02]} 33. Nf1 {[%clk 00:00:46]} {[%emt
00:00:06]} Rc2 {[%clk 00:01:49]} {[%emt 00:00:24]} 34. Rd1 {[%clk 00:00:32]}
{[%emt 00:00:25]} g5 {[%clk 00:01:29]} {[%emt 00:00:30]} 35. Nd2 {[%clk
00:00:36]} {[%emt 00:00:06]} f3 {[%clk 00:01:35]} {[%emt 00:00:04]} 36. Nb3
{[%clk 00:00:37]} {[%emt 00:00:09]} f2 {[%clk 00:01:00]} {[%emt 00:00:45]} 37.
Nd4 {[%clk 00:00:42]} {[%emt 00:00:06]} Kf6 {[%clk 00:01:01]} {[%emt 00:00:08]}
38. Nxc2 {[%clk 00:00:51]} {[%emt 00:00:02]} g4 {[%clk 00:00:53]} {[%emt
00:00:18]} 39. hxg4 {[%clk 00:00:46]} {[%emt 00:00:15]} fxg4 {[%clk 00:01:01]}
{[%emt 00:00:02]} 40. Ne3 {[%clk 00:00:29]} {[%emt 00:00:26]} Kg5 {[%clk
00:01:02]} {[%emt 00:00:08]} 41. Ka6 {[%clk 00:00:16]} {[%emt 00:00:24]} Kf4
{[%clk 00:01:02]} {[%emt 00:00:10]} 42. Nxg4 {[%clk 00:00:15]} {[%emt
00:00:11]} Nxg4 {[%clk 00:00:57]} {[%emt 00:00:14]} 43. Kb7 {[%clk 00:00:23]}
{[%emt 00:00:02]} Ne3 {[%clk 00:00:57]} {[%emt 00:00:09]} 44. Rc1 {[%clk
00:00:12]} {[%emt 00:00:22]} Nxd5 {[%clk 00:00:58]} {[%emt 00:00:09]} 45. b5
{[%clk 00:00:15]} {[%emt 00:00:06]} Nc3 {[%clk 00:00:36]} {[%emt 00:00:33]} 46.
Kxc7 {[%clk 00:00:16]} {[%emt 00:00:10]} Nxb5+ {[%clk 00:00:39]} {[%emt
00:00:07]} 47. Kc6 {[%clk 00:00:24]} Nd4+ {[%clk 00:00:39]} {[%emt 00:00:09]}
1/2-1/2